[Event "Titled Tuesday Blitz August 31 2021"]
[White "Trent, Lawrence"]
[Black "Ashwin, Jayaram"]
[WhiteFideId "408638"]
[BlackFideId "5018137"]
[WhiteElo "2474"]
[BlackElo "2461"]
[Result "1-0"]
[Round "02"]
[TimeControl "180+1"]
[Date "2021.08.31"]
[WhiteClock "0:00:42"]
[BlackClock "0:00:03"]

1. d4 {[%clk 0:02:51]}  d5 {[%clk 0:02:59]} 2. Bf4 {[%clk 0:02:47]}  Nf6 {[%clk 0:02:58]} 3. Nc3 {[%clk 0:02:47]}  a6 {[%clk 0:02:50]} 4. e3 {[%clk 0:02:40]}  e6 {[%clk 0:02:46]} 5. g4 {[%clk 0:02:38]}  Bd6 {[%clk 0:02:43]} 6. Qf3 {[%clk 0:02:37]}  c5 {[%clk 0:02:38]} 7. g5 {[%clk 0:02:35]}  Ng8 {[%clk 0:02:34]} 8. O-O-O {[%clk 0:02:24]}  Nc6 {[%clk 0:02:31]} 9. h4 {[%clk 0:02:19]}  Nge7 {[%clk 0:02:29]} 10. h5 {[%clk 0:02:04]}  cxd4 {[%clk 0:02:19]} 11. exd4 {[%clk 0:02:03]}  Nf5 {[%clk 0:02:16]} 12. Nge2 {[%clk 0:01:59]}  Bxf4+ {[%clk 0:02:13]} 13. Qxf4 {[%clk 0:01:59]}  h6 {[%clk 0:01:41]} 14. gxh6 {[%clk 0:01:51]}  gxh6 {[%clk 0:01:37]} 15. Bh3 {[%clk 0:01:49]}  Nd6 {[%clk 0:01:27]} 16. Kb1 {[%clk 0:01:41]}  Nb5 {[%clk 0:00:55]} 17. Rhe1 {[%clk 0:01:22]}  Qg5 {[%clk 0:00:44]} 18. Qh2 {[%clk 0:01:13]}  Nxc3+ {[%clk 0:00:32]} 19. Nxc3 {[%clk 0:01:13]}  Qxh5 {[%clk 0:00:29]} 20. Qg2 {[%clk 0:01:05]}  Qg5 {[%clk 0:00:21]} 21. Qxd5 {[%clk 0:00:55]}  Qxd5 {[%clk 0:00:16]} 22. Nxd5 {[%clk 0:00:56]}  O-O {[%clk 0:00:16]} 23. Rg1+ {[%clk 0:00:52]}  Kh8 {[%clk 0:00:15]} 24. Nf6 {[%clk 0:00:51]}  Ne7 {[%clk 0:00:12]} 25. Rd3 {[%clk 0:00:49]}  b5 {[%clk 0:00:09]} 26. Bg2 {[%clk 0:00:46]}  Ra7 {[%clk 0:00:06]} 27. Be4 {[%clk 0:00:46]}  Bb7 {[%clk 0:00:03]} 28. Rh3 {[%clk 0:00:42]} 1-0


[Site "https://www.chess.com"]

[Event "Titled Tuesday Blitz August 31 2021"]
[White "Ulko, Jaroslav"]
[Black "Naroditsky, Daniel"]
[WhiteFideId "4116658"]
[BlackFideId "2026961"]
[WhiteElo "2304"]
[BlackElo "2608"]
[Result "0-1"]
[Round "02"]
[TimeControl "180+1"]
[Date "2021.08.31"]
[WhiteClock "0:00:03"]
[BlackClock "0:00:49"]

1. d4 {[%clk 0:03:00]}  Nf6 {[%clk 0:02:58]} 2. Nf3 {[%clk 0:02:59]}  g6 {[%clk 0:02:58]} 3. c3 {[%clk 0:02:58]}  Bg7 {[%clk 0:02:59]} 4. Bg5 {[%clk 0:02:58]}  O-O {[%clk 0:02:59]} 5. Nbd2 {[%clk 0:02:58]}  d6 {[%clk 0:02:59]} 6. e4 {[%clk 0:02:58]}  c5 {[%clk 0:02:58]} 7. dxc5 {[%clk 0:02:57]}  dxc5 {[%clk 0:02:58]} 8. Be2 {[%clk 0:02:36]}  Nc6 {[%clk 0:02:56]} 9. O-O {[%clk 0:02:35]}  Qc7 {[%clk 0:02:56]} 10. Qc2 {[%clk 0:02:35]}  Nh5 {[%clk 0:02:56]} 11. Rfe1 {[%clk 0:02:33]}  Nf4 {[%clk 0:02:55]} 12. Bf1 {[%clk 0:02:33]}  b6 {[%clk 0:02:54]} 13. Nc4 {[%clk 0:02:25]}  Bg4 {[%clk 0:02:51]} 14. Nfd2 {[%clk 0:02:24]}  Be6 {[%clk 0:02:43]} 15. Rad1 {[%clk 0:02:18]}  Rad8 {[%clk 0:02:38]} 16. a4 {[%clk 0:02:16]}  Rd7 {[%clk 0:02:27]} 17. Bh4 {[%clk 0:01:49]}  Bg4 {[%clk 0:02:21]} 18. f3 {[%clk 0:01:48]}  Be6 {[%clk 0:02:22]} 19. Ne3 {[%clk 0:01:41]}  Rfd8 {[%clk 0:02:19]} 20. Ndc4 {[%clk 0:01:40]}  h6 {[%clk 0:02:16]} 21. Bg3 {[%clk 0:01:37]}  g5 {[%clk 0:02:04]} 22. Rxd7 {[%clk 0:01:35]}  Rxd7 {[%clk 0:02:04]} 23. Rd1 {[%clk 0:01:36]}  Qd8 {[%clk 0:02:04]} 24. h4 {[%clk 0:01:27]}  Ne5 {[%clk 0:01:46]} 25. Rxd7 {[%clk 0:01:18]}  Qxd7 {[%clk 0:01:46]} 26. hxg5 {[%clk 0:01:19]}  hxg5 {[%clk 0:01:46]} 27. Nxe5 {[%clk 0:01:07]}  Bxe5 {[%clk 0:01:47]} 28. Bf2 {[%clk 0:01:06]}  Bc7 {[%clk 0:01:33]} 29. Nf5 {[%clk 0:01:01]}  Bxf5 {[%clk 0:01:27]} 30. exf5 {[%clk 0:01:01]}  Qd6 {[%clk 0:01:28]} 31. Be3 {[%clk 0:00:38]}  Nd5 {[%clk 0:01:24]} 32. Qe4 {[%clk 0:00:28]}  Nf6 {[%clk 0:01:10]} 33. Qa8+ {[%clk 0:00:27]}  Kg7 {[%clk 0:01:10]} 34. Kf2 {[%clk 0:00:27]}  Qg3+ {[%clk 0:01:01]} 35. Ke2 {[%clk 0:00:27]}  Qe5 {[%clk 0:01:01]} 36. Kd2 {[%clk 0:00:23]}  Qxf5 {[%clk 0:00:58]} 37. Qxa7 {[%clk 0:00:22]}  Nd5 {[%clk 0:00:56]} 38. Bf2 {[%clk 0:00:19]}  Qb1 {[%clk 0:00:54]} 39. Bd3 {[%clk 0:00:03]}  Qxb2+ {[%clk 0:00:51]} 40. Kd1 {[%clk 0:00:03]}  Nxc3+ {[%clk 0:00:49]} 0-1


[Site "https://www.chess.com"]

[Event "Titled Tuesday Blitz August 31 2021"]
[White "Urjubdshzirov, Erdni"]
[Black "Kowalczyk, Pawel"]
[WhiteFideId "4186451"]
[BlackFideId "1130641"]
[WhiteElo "2405"]
[BlackElo "2325"]
[Result "1-0"]
[Round "02"]
[TimeControl "180+1"]
[Date "2021.08.31"]
[WhiteClock "0:00:14"]
[BlackClock "0:00:15"]

1. e4 {[%clk 0:03:00]}  a6 {[%clk 0:03:00]} 2. d4 {[%clk 0:02:58]}  b5 {[%clk 0:03:00]} 3. Nf3 {[%clk 0:02:58]}  e6 {[%clk 0:03:00]} 4. Bd3 {[%clk 0:02:58]}  Bb7 {[%clk 0:03:01]} 5. O-O {[%clk 0:02:58]}  Nf6 {[%clk 0:03:01]} 6. Re1 {[%clk 0:02:59]}  c5 {[%clk 0:03:01]} 7. c3 {[%clk 0:02:58]}  cxd4 {[%clk 0:03:01]} 8. Nxd4 {[%clk 0:02:56]}  d6 {[%clk 0:02:59]} 9. a4 {[%clk 0:02:55]}  bxa4 {[%clk 0:02:58]} 10. Qxa4+ {[%clk 0:02:53]}  Nbd7 {[%clk 0:02:57]} 11. Nd2 {[%clk 0:02:46]}  Qc7 {[%clk 0:02:56]} 12. N2b3 {[%clk 0:02:42]}  Be7 {[%clk 0:02:50]} 13. Na5 {[%clk 0:02:40]}  O-O {[%clk 0:02:49]} 14. Nxb7 {[%clk 0:02:32]}  Qxb7 {[%clk 0:02:50]} 15. Qc6 {[%clk 0:02:23]}  Qb8 {[%clk 0:02:35]} 16. Rxa6 {[%clk 0:02:12]}  Rxa6 {[%clk 0:02:24]} 17. Bxa6 {[%clk 0:02:08]}  Ne5 {[%clk 0:02:18]} 18. Qb5 {[%clk 0:01:53]}  Qxb5 {[%clk 0:02:12]} 19. Bxb5 {[%clk 0:01:52]}  Rb8 {[%clk 0:02:11]} 20. f4 {[%clk 0:01:50]}  Ng6 {[%clk 0:02:11]} 21. g3 {[%clk 0:01:47]}  d5 {[%clk 0:02:08]} 22. e5 {[%clk 0:01:45]}  Ne4 {[%clk 0:02:07]} 23. Bd3 {[%clk 0:01:40]}  Nc5 {[%clk 0:02:02]} 24. Bc2 {[%clk 0:01:31]}  Rb6 {[%clk 0:01:59]} 25. b4 {[%clk 0:01:15]}  Nd7 {[%clk 0:01:55]} 26. Ba4 {[%clk 0:01:11]}  Nb8 {[%clk 0:01:49]} 27. Bb5 {[%clk 0:01:07]}  Bd8 {[%clk 0:01:43]} 28. Be3 {[%clk 0:01:05]}  Rb7 {[%clk 0:01:44]} 29. Ra1 {[%clk 0:01:02]}  Bb6 {[%clk 0:01:37]} 30. Bd3 {[%clk 0:00:54]}  Ne7 {[%clk 0:01:34]} 31. Ra8 {[%clk 0:00:53]}  Ba7 {[%clk 0:01:31]} 32. Kf2 {[%clk 0:00:49]}  g5 {[%clk 0:01:24]} 33. Ba6 {[%clk 0:00:42]}  Rd7 {[%clk 0:01:16]} 34. Nb5 {[%clk 0:00:27]}  Bxe3+ {[%clk 0:01:15]} 35. Kxe3 {[%clk 0:00:28]}  Rd8 {[%clk 0:01:08]} 36. Nd4 {[%clk 0:00:26]}  gxf4+ {[%clk 0:01:08]} 37. gxf4 {[%clk 0:00:26]}  Kg7 {[%clk 0:01:08]} 38. b5 {[%clk 0:00:22]}  Rg8 {[%clk 0:00:59]} 39. Bb7 {[%clk 0:00:20]}  Nd7 {[%clk 0:00:57]} 40. Rxg8+ {[%clk 0:00:19]}  Kxg8 {[%clk 0:00:56]} 41. Bc6 {[%clk 0:00:19]}  Nb6 {[%clk 0:00:56]} 42. Nc2 {[%clk 0:00:17]}  Nf5+ {[%clk 0:00:53]} 43. Kd3 {[%clk 0:00:18]}  Kf8 {[%clk 0:00:52]} 44. Ne3 {[%clk 0:00:18]}  Nxe3 {[%clk 0:00:52]} 45. Kxe3 {[%clk 0:00:19]}  Ke7 {[%clk 0:00:52]} 46. Kd4 {[%clk 0:00:19]}  Kd8 {[%clk 0:00:52]} 47. Kc5 {[%clk 0:00:19]}  Na4+ {[%clk 0:00:48]} 48. Kb4 {[%clk 0:00:18]}  Nb6 {[%clk 0:00:48]} 49. Ka5 {[%clk 0:00:17]}  Nc4+ {[%clk 0:00:20]} 50. Ka6 {[%clk 0:00:17]}  Kc7 {[%clk 0:00:17]} 51. Be8 {[%clk 0:00:16]}  Ne3 {[%clk 0:00:16]} 52. Bxf7 {[%clk 0:00:15]}  Ng2 {[%clk 0:00:17]} 53. Bxe6 {[%clk 0:00:14]}  Nxf4 {[%clk 0:00:17]} 54. Bg8 {[%clk 0:00:14]}  h5 {[%clk 0:00:15]} 55. Ka7 {[%clk 0:00:14]} 1-0


[Site "https://www.chess.com"]

[Event "Titled Tuesday Blitz August 31 2021"]
[White "Vachier-Lagrave, Maxime"]
[Black "Mortazavi, Ali"]
[WhiteFideId "623539"]
[BlackFideId "401323"]
[WhiteElo "2850"]
[BlackElo "2339"]
[Result "0-1"]
[Round "02"]
[TimeControl "180+1"]
[Date "2021.08.31"]
[WhiteClock "0:01:11"]
[BlackClock "0:00:10"]

1. e4 {[%clk 0:03:00]}  c6 {[%clk 0:02:59]} 2. d4 {[%clk 0:02:57]}  d5 {[%clk 0:02:59]} 3. e5 {[%clk 0:02:57]}  Bf5 {[%clk 0:02:59]} 4. c4 {[%clk 0:02:55]}  dxc4 {[%clk 0:02:47]} 5. Bxc4 {[%clk 0:02:54]}  e6 {[%clk 0:02:47]} 6. Nc3 {[%clk 0:02:53]}  Nd7 {[%clk 0:02:44]} 7. Nge2 {[%clk 0:02:51]}  Nb6 {[%clk 0:02:44]} 8. Bb3 {[%clk 0:02:51]}  Ne7 {[%clk 0:02:38]} 9. Ng3 {[%clk 0:02:49]}  Bg6 {[%clk 0:02:38]} 10. h4 {[%clk 0:02:49]}  h6 {[%clk 0:02:35]} 11. h5 {[%clk 0:02:49]}  Bh7 {[%clk 0:02:35]} 12. O-O {[%clk 0:02:40]}  Ned5 {[%clk 0:02:16]} 13. Nxd5 {[%clk 0:02:36]}  Nxd5 {[%clk 0:02:16]} 14. Qg4 {[%clk 0:02:35]}  Qd7 {[%clk 0:02:04]} 15. Bd2 {[%clk 0:02:31]}  O-O-O {[%clk 0:01:56]} 16. Rac1 {[%clk 0:02:29]}  Kb8 {[%clk 0:01:56]} 17. Rfd1 {[%clk 0:02:23]}  Rg8 {[%clk 0:01:40]} 18. Ba5 {[%clk 0:02:18]}  Rc8 {[%clk 0:01:37]} 19. Re1 {[%clk 0:02:16]}  Be7 {[%clk 0:01:33]} 20. Bd2 {[%clk 0:02:02]}  Rcd8 {[%clk 0:01:22]} 21. Qf3 {[%clk 0:02:02]}  Bg5 {[%clk 0:01:17]} 22. Rcd1 {[%clk 0:01:49]}  Bxd2 {[%clk 0:01:16]} 23. Rxd2 {[%clk 0:01:49]}  Qe7 {[%clk 0:01:14]} 24. a3 {[%clk 0:01:42]}  g5 {[%clk 0:01:10]} 25. hxg6 {[%clk 0:01:38]}  Bxg6 {[%clk 0:01:10]} 26. Bc2 {[%clk 0:01:35]}  Qg5 {[%clk 0:01:07]} 27. Red1 {[%clk 0:01:29]}  Nf4 {[%clk 0:01:02]} 28. Bxg6 {[%clk 0:01:28]}  Rxg6 {[%clk 0:01:00]} 29. Rc2 {[%clk 0:01:23]}  h5 {[%clk 0:00:56]} 30. Kf1 {[%clk 0:01:22]}  h4 {[%clk 0:00:57]} 31. Ne4 {[%clk 0:01:21]}  Qxg2+ {[%clk 0:00:42]} 32. Qxg2 {[%clk 0:01:22]}  Nxg2 {[%clk 0:00:43]} 33. Rc3 {[%clk 0:01:21]}  Rdg8 {[%clk 0:00:32]} 34. Rf3 {[%clk 0:01:19]}  Rh8 {[%clk 0:00:20]} 35. Ke2 {[%clk 0:01:18]}  h3 {[%clk 0:00:19]} 36. Rh1 {[%clk 0:01:16]}  Rh4 {[%clk 0:00:19]} 37. Nd6 {[%clk 0:01:16]}  Rxd4 {[%clk 0:00:15]} 38. Rxf7 {[%clk 0:01:14]}  Rd5 {[%clk 0:00:12]} 39. Rxh3 {[%clk 0:01:11]}  Rxe5+ {[%clk 0:00:11]} 40. Kf1 {[%clk 0:01:11]}  Re1# {[%clk 0:00:10]} 0-1


[Site "https://www.chess.com"]

[Event "Titled Tuesday Blitz August 31 2021"]
[White "Visakh N R"]
[Black "Kavyev, Ruslan"]
[WhiteFideId "25012223"]
[BlackFideId "34110981"]
[WhiteElo "2428"]
[BlackElo "2172"]
[Result "1-0"]
[Round "02"]
[TimeControl "180+1"]
[Date "2021.08.31"]
[WhiteClock "0:01:12"]
[BlackClock "0:00:12"]

1. c4 {[%clk 0:03:00]}  Nf6 {[%clk 0:02:57]} 2. Nc3 {[%clk 0:03:00]}  g6 {[%clk 0:02:57]} 3. b3 {[%clk 0:02:58]}  Bg7 {[%clk 0:02:57]} 4. Bb2 {[%clk 0:02:59]}  O-O {[%clk 0:02:58]} 5. g3 {[%clk 0:02:59]}  c6 {[%clk 0:02:56]} 6. Bg2 {[%clk 0:02:59]}  d5 {[%clk 0:02:57]} 7. cxd5 {[%clk 0:02:56]}  cxd5 {[%clk 0:02:57]} 8. d4 {[%clk 0:02:57]}  Nc6 {[%clk 0:02:58]} 9. Nf3 {[%clk 0:02:57]}  Ne4 {[%clk 0:02:58]} 10. O-O {[%clk 0:02:57]}  Bf5 {[%clk 0:02:52]} 11. e3 {[%clk 0:02:52]}  Nxc3 {[%clk 0:02:52]} 12. Bxc3 {[%clk 0:02:52]}  Be4 {[%clk 0:02:53]} 13. Qd2 {[%clk 0:02:51]}  Qd7 {[%clk 0:02:33]} 14. Rfc1 {[%clk 0:02:50]}  Rfc8 {[%clk 0:02:32]} 15. a4 {[%clk 0:02:44]}  a6 {[%clk 0:02:22]} 16. Ne1 {[%clk 0:02:42]}  Bxg2 {[%clk 0:02:22]} 17. Kxg2 {[%clk 0:02:43]}  a5 {[%clk 0:02:11]} 18. Nd3 {[%clk 0:02:41]}  b6 {[%clk 0:02:12]} 19. Bb2 {[%clk 0:02:40]}  Rc7 {[%clk 0:02:11]} 20. Rc2 {[%clk 0:02:39]}  Rac8 {[%clk 0:02:12]} 21. Rac1 {[%clk 0:02:39]}  e6 {[%clk 0:02:10]} 22. Ba3 {[%clk 0:02:38]}  Bf8 {[%clk 0:02:06]} 23. Bxf8 {[%clk 0:02:36]}  Kxf8 {[%clk 0:02:07]} 24. Rxc6 {[%clk 0:02:35]}  Rxc6 {[%clk 0:02:06]} 25. Ne5 {[%clk 0:02:35]}  Qb7 {[%clk 0:02:01]} 26. Rxc6 {[%clk 0:02:26]}  Rxc6 {[%clk 0:02:02]} 27. Nxc6 {[%clk 0:02:26]}  Qxc6 {[%clk 0:02:02]} 28. h4 {[%clk 0:02:24]}  h5 {[%clk 0:02:01]} 29. Qd3 {[%clk 0:02:23]}  Kg7 {[%clk 0:01:57]} 30. Qa6 {[%clk 0:02:23]}  Qc7 {[%clk 0:01:24]} 31. Qb5 {[%clk 0:02:21]}  Kh7 {[%clk 0:01:24]} 32. Qe2 {[%clk 0:02:10]}  Kg7 {[%clk 0:01:23]} 33. g4 {[%clk 0:02:07]}  hxg4 {[%clk 0:01:23]} 34. Qxg4 {[%clk 0:02:08]}  Qc2 {[%clk 0:01:23]} 35. h5 {[%clk 0:02:07]}  Kh6 {[%clk 0:00:38]} 36. Qf4+ {[%clk 0:01:55]}  Kxh5 {[%clk 0:00:25]} 37. Qxf7 {[%clk 0:01:53]}  Qe4+ {[%clk 0:00:23]} 38. Qf3+ {[%clk 0:01:53]}  Qxf3+ {[%clk 0:00:22]} 39. Kxf3 {[%clk 0:01:54]}  Kg5 {[%clk 0:00:22]} 40. Kg3 {[%clk 0:01:51]}  Kf5 {[%clk 0:00:21]} 41. f3 {[%clk 0:01:51]}  g5 {[%clk 0:00:19]} 42. Kh3 {[%clk 0:01:50]}  Kf6 {[%clk 0:00:18]} 43. Kg4 {[%clk 0:01:50]}  Kg6 {[%clk 0:00:19]} 44. e4 {[%clk 0:01:50]}  Kh6 {[%clk 0:00:14]} 45. exd5 {[%clk 0:01:49]}  exd5 {[%clk 0:00:14]} 46. Kf5 {[%clk 0:01:49]}  Kh5 {[%clk 0:00:14]} 47. Kf6 {[%clk 0:01:46]}  Kh4 {[%clk 0:00:14]} 48. Kg6 {[%clk 0:01:46]}  Kg3 {[%clk 0:00:14]} 49. Kxg5 {[%clk 0:01:46]}  Kxf3 {[%clk 0:00:14]} 50. Kf5 {[%clk 0:01:46]}  Ke3 {[%clk 0:00:14]} 51. Ke5 {[%clk 0:01:46]}  Kd3 {[%clk 0:00:15]} 52. Kxd5 {[%clk 0:01:47]}  Kc3 {[%clk 0:00:15]} 53. Kc6 {[%clk 0:01:38]}  Kxb3 {[%clk 0:00:09]} 54. d5 {[%clk 0:01:37]}  Kxa4 {[%clk 0:00:10]} 55. d6 {[%clk 0:01:37]}  b5 {[%clk 0:00:10]} 56. d7 {[%clk 0:01:38]}  b4 {[%clk 0:00:11]} 57. d8=Q {[%clk 0:01:38]}  b3 {[%clk 0:00:12]} 58. Qd4+ {[%clk 0:01:38]}  Ka3 {[%clk 0:00:13]} 59. Qa1+ {[%clk 0:01:37]}  Kb4 {[%clk 0:00:13]} 60. Qe1+ {[%clk 0:01:36]}  Ka4 {[%clk 0:00:11]} 61. Kc5 {[%clk 0:01:19]}  Ka3 {[%clk 0:00:11]} 62. Qxa5+ {[%clk 0:01:18]}  Kb2 {[%clk 0:00:12]} 63. Kc4 {[%clk 0:01:18]}  Kc2 {[%clk 0:00:12]} 64. Qc3+ {[%clk 0:01:14]}  Kb1 {[%clk 0:00:11]} 65. Qxb3+ {[%clk 0:01:13]}  Ka1 {[%clk 0:00:12]} 66. Qd1+ {[%clk 0:01:12]}  Ka2 {[%clk 0:00:12]} 67. Qd2+ {[%clk 0:01:12]}  Ka1 {[%clk 0:00:11]} 68. Kb3 {[%clk 0:01:12]}  Kb1 {[%clk 0:00:12]} 69. Qb2# {[%clk 0:01:12]} 1-0


[Site "https://www.chess.com"]

[Event "Titled Tuesday Blitz August 31 2021"]
[White "Weetik, Vjacheslav"]
[Black "Suarez Uriel, Adrian"]
[WhiteFideId "4153472"]
[BlackFideId "22230874"]
[WhiteElo "2469"]
[BlackElo "2300"]
[Result "1-0"]
[Round "02"]
[TimeControl "180+1"]
[Date "2021.08.31"]
[WhiteClock "0:01:08"]
[BlackClock "0:01:48"]

1. d4 {[%clk 0:03:00]}  Nf6 {[%clk 0:03:00]} 2. Bf4 {[%clk 0:03:00]}  b6 {[%clk 0:02:58]} 3. Nf3 {[%clk 0:03:00]}  Bb7 {[%clk 0:02:59]} 4. e3 {[%clk 0:02:54]}  g6 {[%clk 0:02:55]} 5. h3 {[%clk 0:02:54]}  Bg7 {[%clk 0:02:55]} 6. c4 {[%clk 0:02:55]}  O-O {[%clk 0:02:50]} 7. Nc3 {[%clk 0:02:55]}  c5 {[%clk 0:02:47]} 8. d5 {[%clk 0:02:53]}  d6 {[%clk 0:02:40]} 9. Be2 {[%clk 0:02:51]}  Nbd7 {[%clk 0:02:39]} 10. O-O {[%clk 0:02:51]}  e5 {[%clk 0:02:39]} 11. dxe6 {[%clk 0:02:50]}  fxe6 {[%clk 0:02:39]} 12. Qxd6 {[%clk 0:02:41]}  e5 {[%clk 0:02:29]} 13. Nxe5 {[%clk 0:02:25]}  Nxe5 {[%clk 0:02:27]} 14. Qxd8 {[%clk 0:02:05]}  Rfxd8 {[%clk 0:02:21]} 15. Bxe5 {[%clk 0:02:06]}  Rd2 {[%clk 0:02:21]} 16. Bf3 {[%clk 0:01:38]}  Bxf3 {[%clk 0:02:18]} 17. gxf3 {[%clk 0:01:39]}  Rxb2 {[%clk 0:02:18]} 18. Nd5 {[%clk 0:01:38]}  Nxd5 {[%clk 0:02:11]} 19. Bxb2 {[%clk 0:01:36]}  Bxb2 {[%clk 0:02:11]} 20. Rab1 {[%clk 0:01:37]}  Nxe3 {[%clk 0:02:03]} 21. fxe3 {[%clk 0:01:37]}  Bf6 {[%clk 0:02:03]} 22. Rfd1 {[%clk 0:01:35]}  Re8 {[%clk 0:02:03]} 23. Kf2 {[%clk 0:01:24]}  Bg5 {[%clk 0:02:02]} 24. f4 {[%clk 0:01:23]}  Bf6 {[%clk 0:02:02]} 25. Rd7 {[%clk 0:01:21]}  g5 {[%clk 0:02:00]} 26. fxg5 {[%clk 0:01:17]}  Bg7 {[%clk 0:01:50]} 27. Rbd1 {[%clk 0:01:12]}  Re4 {[%clk 0:01:49]} 28. Rxa7 {[%clk 0:01:09]}  Rxc4 {[%clk 0:01:48]} 29. Rd8+ {[%clk 0:01:08]} 1-0


[Site "https://www.chess.com"]

[Event "Titled Tuesday Blitz August 31 2021"]
[White "Wong, Yinn Long"]
[Black "Bychkov, Vladimir"]
[WhiteFideId "5707684"]
[BlackFideId "24151513"]
[WhiteElo "2016"]
[BlackElo "2308"]
[Result "1-0"]
[Round "02"]
[TimeControl "180+1"]
[Date "2021.08.31"]
[WhiteClock "0:00:36"]
[BlackClock "0:00:20"]

1. e4 {[%clk 0:03:00]}  c6 {[%clk 0:02:42]} 2. Nf3 {[%clk 0:03:00]}  d5 {[%clk 0:02:43]} 3. d3 {[%clk 0:03:00]}  Qc7 {[%clk 0:02:41]} 4. Qe2 {[%clk 0:02:51]}  dxe4 {[%clk 0:02:41]} 5. dxe4 {[%clk 0:02:51]}  e5 {[%clk 0:02:41]} 6. g3 {[%clk 0:02:50]}  Nf6 {[%clk 0:02:40]} 7. Bg2 {[%clk 0:02:50]}  a5 {[%clk 0:02:36]} 8. O-O {[%clk 0:02:49]}  Bc5 {[%clk 0:02:36]} 9. c3 {[%clk 0:02:45]}  O-O {[%clk 0:02:36]} 10. h3 {[%clk 0:02:37]}  h6 {[%clk 0:02:33]} 11. Nbd2 {[%clk 0:02:28]}  Be6 {[%clk 0:02:30]} 12. Nb3 {[%clk 0:02:24]}  Ba7 {[%clk 0:02:21]} 13. Be3 {[%clk 0:02:22]}  a4 {[%clk 0:02:19]} 14. Bxa7 {[%clk 0:02:19]}  axb3 {[%clk 0:02:01]} 15. Bc5 {[%clk 0:02:14]}  bxa2 {[%clk 0:01:53]} 16. Bxf8 {[%clk 0:02:13]}  Kxf8 {[%clk 0:01:54]} 17. c4 {[%clk 0:01:54]}  b5 {[%clk 0:01:47]} 18. b3 {[%clk 0:01:49]}  bxc4 {[%clk 0:01:36]} 19. bxc4 {[%clk 0:01:49]}  Qa5 {[%clk 0:01:36]} 20. Rfc1 {[%clk 0:01:46]}  Nbd7 {[%clk 0:01:29]} 21. Rc2 {[%clk 0:01:46]}  Qc5 {[%clk 0:01:19]} 22. Rcxa2 {[%clk 0:01:42]}  Rxa2 {[%clk 0:01:18]} 23. Rxa2 {[%clk 0:01:40]}  Bxc4 {[%clk 0:01:13]} 24. Ra8+ {[%clk 0:01:40]}  Ke7 {[%clk 0:01:11]} 25. Qc2 {[%clk 0:01:36]}  g5 {[%clk 0:01:03]} 26. Nd2 {[%clk 0:01:26]}  Bb5 {[%clk 0:00:59]} 27. Qxc5+ {[%clk 0:01:17]}  Nxc5 {[%clk 0:01:00]} 28. Bf1 {[%clk 0:01:11]}  Bxf1 {[%clk 0:00:56]} 29. Kxf1 {[%clk 0:01:12]}  Nfxe4 {[%clk 0:00:56]} 30. Nxe4 {[%clk 0:01:08]}  Nxe4 {[%clk 0:00:57]} 31. Rh8 {[%clk 0:01:08]}  f6 {[%clk 0:00:47]} 32. Rxh6 {[%clk 0:01:06]}  c5 {[%clk 0:00:43]} 33. Rh8 {[%clk 0:01:00]}  Nd6 {[%clk 0:00:41]} 34. Ke2 {[%clk 0:00:56]}  Ke6 {[%clk 0:00:38]} 35. Ra8 {[%clk 0:00:55]}  Kd5 {[%clk 0:00:35]} 36. h4 {[%clk 0:00:50]}  gxh4 {[%clk 0:00:35]} 37. gxh4 {[%clk 0:00:51]}  Nf5 {[%clk 0:00:36]} 38. h5 {[%clk 0:00:51]}  e4 {[%clk 0:00:32]} 39. Rf8 {[%clk 0:00:49]}  Ke6 {[%clk 0:00:30]} 40. Rc8 {[%clk 0:00:48]}  Kd5 {[%clk 0:00:22]} 41. Rh8 {[%clk 0:00:45]}  c4 {[%clk 0:00:20]} 42. h6 {[%clk 0:00:45]}  c3 {[%clk 0:00:21]} 43. h7 {[%clk 0:00:42]}  Nd4+ {[%clk 0:00:21]} 44. Kd1 {[%clk 0:00:39]}  c2+ {[%clk 0:00:18]} 45. Kc1 {[%clk 0:00:40]}  Kc4 {[%clk 0:00:19]} 46. Rc8+ {[%clk 0:00:38]}  Kd3 {[%clk 0:00:19]} 47. h8=Q {[%clk 0:00:34]}  Nb3+ {[%clk 0:00:19]} 48. Kb2 {[%clk 0:00:35]}  c1=Q+ {[%clk 0:00:19]} 49. Rxc1 {[%clk 0:00:35]}  Nxc1 {[%clk 0:00:20]} 50. Kxc1 {[%clk 0:00:36]}  Ke2 {[%clk 0:00:20]} 51. Qh4 {[%clk 0:00:36]} 1-0


[Site "https://www.chess.com"]